[Event "13th Rheinland-Pfalz-Open 2023"]
[Site "Neuwied-Engers"]
[Date "2023.06.09"]
[Round "4.3"]
[White "Boehme, Sebastian"]
[Black "Weber, Samuel"]
[Result "1-0"]
[Annotator "TA"]
[ECO "B31"]
[WhiteElo "2163"]
[BlackElo "2296"]
[PlyCount "98"]
[EventDate "2023.01.12"]
[EventType "swiss"]
[EventCountry "GER"]
[SourceTitle "playchess.com"]
[Source "ChessBase"]
[SourceQuality "1"]
[TimeControl "40/5400+30:1800+30"]

{[%evp 11,98,41,29,5,27,0,12,24,14,13,22,13,57,20,51,11,48,23,45,43,185,161,179,186,188,182,182,181,178,174,219,194,200,215,217,215,257,257,257,255,244,239,229,237,285,286,288,280,283,295,297,304,304,297,296,293,279,282,350,347,357,357,517,512,485,464,627,619,585,567,942,838,1380,1302,5916,5169,5169,4826,29962,29964,29964,12845,12619,11459,29968,29968,29967,29961,5173]} 1. e4 {[%emt 0:01:06]} c5 {[%emt 0:05:14]} 2. Nf3 {[%emt 0:00:18]} Nc6 {[%emt 0:02:15]} 3. Bb5 {[%emt 0:00:44]} g6 {[%emt 0:00:06]} 4. Bxc6 {[%emt 0:00:17]} bxc6 {[%emt 0:00:09]} 5. O-O {[%emt 0:01:35]} Bg7 {[%emt 0:00:46]} 6. Re1 {[%emt 0:00:13]} Nf6 {[%emt 0:00:46] 6...Qc7 gains popularity.} 7. c3 {[%emt 0:00:44] B31: Sicilian: 2...Nc6 3 Bb5 g6.} (7. e5 $5 {[%cal Re5f6]} Nd5 8. d4 $11) 7... d6 {[%emt 0:00:43]} 8. h3 {[%emt 0:01:08]} Qc7 {[%emt 0:00:20]} 9. d4 {[%emt 0:01:17] The position is equal.} cxd4 {[%emt 0:01:18]} 10. cxd4 {[%emt 0:00:20]} O-O {[%emt 0:00:16]} 11. Nc3 {[%emt 0:01:09]} Nd7 {[%emt 0:01:36] [#]} 12. b3 $146 {[%emt 0:03:56]} ({Predecessor:} 12. Bg5 Re8 13. Rc1 Bb7 14. d5 Qa5 15. b4 Qxb4 16. Rb1 Qxc3 17. Rxb7 Nf6 18. Qa4 cxd5 19. exd5 Nxd5 20. Rxa7 {½-½ Bodrozic,T (2349)-Gschnitzer,O (2366) BL2-Sued 2122 2022 (1.5)}) 12... c5 {[%emt 0:01:37]} 13. Bb2 {[%emt 0:03:01][%cal Bc1b2,Bb2d4,Bd4e3,Be3g5][%mdl 32]} cxd4 {[%emt 0:04:55]} 14. Nd5 {[%emt 0:03:24]} Qd8 {[%emt 0:01:01] ...e6 would be deadly.} 15. Bxd4 {[%emt 0:12:43]} f6 {[%emt 0:17:25] This move loses the game for Black.} ({Black should try} 15... Bb7 $14) 16. Rc1 $18 {[%emt 0:01:51] aiming for Nc7.} Ne5 {[%emt 0:00:21]} 17. Nxe5 {[%emt 0:04:50]} fxe5 {[%emt 0:01:44]} 18. Be3 {[%emt 0:02:30] Black must now prevent Bg5.} e6 {[%emt 0:02:26] [#]} 19. Qd2 $1 {[%emt 0:08:47]} Rf7 {[%emt 0:01:15]} 20. Bg5 $36 {[%emt 0:03:39][%mdl 2048] Black is under strong pressure.} Qf8 {[%emt 0:00:58]} 21. Nc7 {[%emt 0:07:51]} Rb8 {[%emt 0:00:44]} 22. Red1 {[%emt 0:01:43]} Rb7 {[%emt 0:03:32]} 23. Qxd6 {[%emt 0:02:29]} (23. Na6 $6 Rbd7 $16) 23... h6 {[%emt 0:17:52] Strongly threatening ...Qxd6. Black is weak on the light squares} (23... Rxf2 $2 24. Be7 Rb6 25. Bxf8 $18) 24. Qxf8+ {[%emt 0:04:25]} ({Weaker is} 24. Nxe6 Qxd6 25. Rxc8+ (25. Rxd6 Bxe6 26. Rxe6 hxg5 $11) 25... Rf8 26. Rxd6 Rxc8 $16) 24... Bxf8 {[%emt 0:01:01]} 25. Rd8 {[%emt 0:00:39][%csl LRc8,LRh6]} Rbxc7 {[%emt 0:11:04]} 26. Rxc7 {[%emt 0:00:13]} Rxc7 {[%emt 0:00:01]} 27. Bxh6 {[%emt 0:00:08]} Kh7 {[%emt 0:00:14]} 28. Bxf8 {[%emt 0:00:10][%mdl 4096] Endgame KRB-KRB} ({Worse is} 28. Rxf8 Kxh6 29. f3 Rc1+ 30. Kh2 a5 $17) 28... Bb7 {[%emt 0:00:45]} 29. Bd6 {[%emt 0:02:25]} Rc1+ {[%emt 0:00:28]} 30. Kh2 {[%emt 0:00:01]} Bxe4 {[%emt 0:00:50]} 31. Bxe5 {[%emt 0:00:08][%csl Ge5][%cal Rd8h8]} g5 {[%emt 0:00:06]} 32. Rd7+ {[%emt 0:00:43]} Kg6 {[%emt 0:00:08]} 33. Rxa7 {[%emt 0:00:28]} Bd5 {[%emt 0:00:37]} 34. Bd4 {[%emt 0:05:52]} Rd1 {[%emt 0:02:01]} 35. Be3 {[%emt 0:00:20]} Ra1 {[%emt 0:00:25]} 36. Rg7+ {[%emt 0:01:12]} Kf5 {[%emt 0:00:01]} (36... Kxg7 $142 37. Bd4+ (37. Bxg5 $2 {is the wrong capture.} Rxa2 38. Be3 Bxb3 $19) 37... Kh7 38. Bxa1 Kh6) 37. Rxg5+ {[%emt 0:01:00]} Ke4 {[%emt 0:00:08]} 38. Rg4+ {[%emt 0:00:50]} Kd3 {[%emt 0:00:03]} 39. Rd4+ {[%emt 0:03:50]} Ke2 {[%emt 0:01:10]} 40. Rd2+ {[%emt 0:00:40]} Kf1 {[%emt 0:00:04]} 41. g4 {[%emt 0:30:22]} Be4 {[%emt 0:30:16] [#]} 42. f3 $1 {[%emt 0:01:37]} Bd5 {[%emt 0:00:36]} (42... Bb1 43. Kg3) 43. Rf2+ {[%emt 0:00:20]} Ke1 {[%emt 0:00:04]} 44. Rg2 {[%emt 0:00:33]} Rd1 {[%emt 0:00:13]} 45. Rg1+ {[%emt 0:00:12]} Ke2 {[%emt 0:00:04]} 46. Rxd1 {[%emt 0:00:03]} Kxd1 {[%emt 0:00:06]} 47. Kg3 {[%emt 0:01:04] White wants to mate with Bf4.} Ke2 {[%emt 0:00:01]} 48. Bf4 {[%emt 0:01:23]} Bxf3 {[%emt 0:00:06]} 49. a4 {[%emt 0:02:13]} Bc6 {[%emt 0:00:20] Artfully played by Boehme.   Weighted Error Value: White=0.06 (flawless) /Black=0.33} 1-0

[Event "13th Rheinland-Pfalz-Open 2023"]
[Site "Neuwied-Engers"]
[Date "2023.06.09"]
[Round "4.5"]
[White "du Maire, Jerome"]
[Black "Ollenberger, Roland"]
[Result "1-0"]
[Annotator "TA"]
[ECO "D30"]
[WhiteElo "2129"]
[BlackElo "2280"]
[PlyCount "149"]
[EventDate "2023.01.12"]
[EventType "swiss"]
[EventCountry "GER"]
[SourceTitle "playchess.com"]
[Source "ChessBase"]
[SourceQuality "1"]
[TimeControl "40/5400+30:1800+30"]

{[%evp 22,149,-22,-39,-24,-43,0,0,0,0,0,0,-5,-39,-27,-38,64,32,37,-2,7,12,0,0,124,122,164,168,170,157,237,237,337,315,279,196,263,261,240,196,220,187,186,181,214,198,202,150,183,101,100,93,116,114,114,104,114,104,99,84,85,71,71,77,77,77,66,66,78,47,79,65,82,76,98,94,118,100,118,118,118,121,117,78,87,61,182,196,223,222,202,223,230,222,230,209,223,216,195,116,109,78,422,398,357,150,131,76,691,705,930,844,5868,2191,5595,5410,4610,2587,2546,982,5410,4618,29990,29988,29989,29989,29989,29989,29990,29991]} 1. d4 {[%emt 0:00:03]} Nf6 {[%emt 0:00:11]} 2. c4 {[%emt 0:00:13]} e6 {[%emt 0:00:05]} 3. g3 {[%emt 0:00:14]} d5 {[%emt 0:00:13]} 4. Bg2 {[%emt 0:00:12]} Bb4+ {[%emt 0:00:34]} 5. Nd2 {[%emt 0:00:28][%cal Bb1d2,Bd2b3,Bb3d4][%mdl 32]} O-O {[%emt 0:00:31]} 6. Ngf3 {[%emt 0:01:04]} c5 {[%emt 0:06:38]} 7. cxd5 {[%emt 0:18:20]} exd5 {[%emt 0:07:22]} 8. dxc5 {[%emt 0:08:40]} Bxc5 {[%emt 0:00:55]} 9. O-O {[%emt 0:00:37]} Nc6 {[%emt 0:00:35]} 10. Nb3 {[%emt 0:08:01]} Bb6 {[%emt 0:01:32]} 11. Nbd4 {[%emt 0:01:37]} Re8 {[%emt 0:02:26]} 12. e3 {[%emt 0:05:05]} Bg4 {[%emt 0:04:15] D30: Queen's Gambit Declined: Systems without Nc3.} 13. h3 {[%emt 0:04:43] [#]} Bd7 $146 {[%emt 0:06:16]} ({Predecessor:} 13... Bh5 14. g4 Bg6 15. b3 Rc8 16. Ba3 Ne4 17. Bb2 f6 18. Rc1 Nc5 19. Nxc6 bxc6 20. Bd4 {1-0 Jovic,A (2385)-Grcic,V (2174) Belgrade-chT Quality 2018 (5.3)}) 14. b3 {[%emt 0:00:56]} Ne4 {[%emt 0:03:21] The position is equal.} 15. Bb2 {[%emt 0:01:24]} Qf6 {[%emt 0:08:17]} 16. Rc1 {[%emt 0:10:58]} Qh6 {[%emt 0:06:07]} 17. Nxc6 {[%emt 0:06:05]} (17. Kh2 {looks sharper.} Bg4 18. Nxc6 bxc6 19. Qc2) 17... bxc6 {[%emt 0:12:00]} 18. Ne5 {[%emt 0:04:27][%cal Bf3e5,Be5d3,Bd3f4][%mdl 32]} Bxh3 {[%emt 0:23:48]} (18... Nxf2 $1 $15 19. Rxf2 (19. Qf3 $2 Rxe5 20. Bxe5 Nxh3+ 21. Bxh3 Bxe3+ 22. Rf2 Bxf2+ 23. Kxf2 Bxh3 $19) 19... Qxe3) 19. Rxc6 $14 {[%emt 0:00:45]} Be6 {[%emt 0:00:54]} 20. Nd3 {[%emt 0:09:36]} (20. Bd4 $5 {[%cal Rd4b6]}) 20... Rac8 {[%emt 0:03:06]} 21. Rxc8 {[%emt 0:00:10]} Rxc8 {[%emt 0:00:24]} (21... Bxc8 {simplifies} 22. Re1 Qg5 23. Bd4 Bxd4 24. exd4 Bf5) 22. Nf4 {[%emt 0:00:15]} Rd8 {[%emt 0:06:00]} (22... Nxg3 $1 $11 23. fxg3 Bxe3+ 24. Rf2 Qg5) 23. Bd4 $36 {[%emt 0:01:25][%mdl 2048] Hoping for Bxb6. White is really pushing.} Nf6 {[%emt 0:04:08]} 24. Bxb6 $1 {[%emt 0:01:52]} axb6 {[%emt 0:00:12]} 25. Qd4 {[%emt 0:01:11]} b5 {[%emt 0:02:23]} (25... Rc8 $16 {might work better.}) 26. Rc1 $18 {[%emt 0:01:01]} Qg5 {[%emt 0:00:37]} (26... Nd7 $142 27. a4 (27. Bxd5 Nf8 $18) (27. Nxd5 Qg5 $18) 27... bxa4) 27. Qb6 {[%emt 0:00:46]} Re8 {[%emt 0:00:31]} 28. Qxb5 {[%emt 0:00:28]} Qe5 {[%emt 0:00:13]} (28... h5 $142 29. Rc5 Bd7) 29. Nxe6 {[%emt 0:00:36]} fxe6 {[%emt 0:00:18]} 30. Qc6 {[%emt 0:00:53]} Qb2 {[%emt 0:00:13]} 31. Qc2 {[%emt 0:00:21]} Qa3 {[%emt 0:00:06]} 32. Bh3 {[%emt 0:00:54]} Kf7 {[%emt 0:00:23]} 33. Rb1 {[%emt 0:01:34][%cal Bc1b1,Bb1b2,Bb2c2][%mdl 32]} Re7 {[%emt 0:00:45][%cal Be8e7,Be7a7,Ba7a3][%mdl 32]} 34. Qb2 {[%emt 0:00:56]} Ra7 {[%emt 0:01:13]} 35. Qxa3 {[%emt 0:00:48]} (35. Qe5 $18) 35... Rxa3 {[%emt 0:00:04][%mdl 4096] Endgame KRB-KRN} 36. Rb2 {[%emt 0:00:20]} Ne4 {[%emt 0:00:26]} 37. Rc2 {[%emt 0:00:27]} Ke7 {[%emt 0:00:19]} 38. Bg2 {[%emt 0:01:43]} Nf6 {[%emt 0:00:16]} 39. Kf1 {[%emt 0:00:31]} Kd6 {[%emt 0:00:10]} 40. Ke2 {[%emt 0:00:32]} g5 {[%emt 0:00:52]} 41. Kd3 {[%emt 0:34:09]} h5 {[%emt 0:30:30]} 42. f4 {[%emt 0:02:57]} gxf4 {[%emt 0:01:46]} 43. gxf4 {[%emt 0:00:00]} h4 {[%emt 0:00:00]} 44. Bf3 {[%emt 0:00:00]} Nd7 {[%emt 0:00:00]} 45. Kc3 {[%emt 0:00:00]} Ra7 {[%emt 0:00:00]} 46. Rh2 {[%emt 0:00:00]} Nc5 {[%emt 0:00:00]} 47. Kd4 {[%emt 0:00:00]} Ra8 {[%emt 0:00:00]} 48. e4 {[%emt 0:00:00]} (48. Rxh4 Rxa2 49. Kc3 Rf2 $11) 48... dxe4 {[%emt 0:00:00]} 49. Bxe4 {[%emt 0:00:00]} Rb8 {[%emt 0:00:00]} 50. Bd3 {[%emt 0:00:00]} (50. Rxh4 $2 {loses.} Rb4+ 51. Ke3 Rxe4+ 52. Kf3 Re1 $19) 50... Ra8 {[%emt 0:00:00]} 51. Bc4 {[%emt 0:00:22]} Rh8 {[%emt 0:00:00]} 52. Rh3 {[%emt 0:02:42]} Nd7 {[%emt 0:00:00]} 53. a4 {[%emt 0:01:32]} Nf6 {[%emt 0:00:00]} (53... e5+ $14 54. fxe5+ Nxe5) 54. Re3 {[%emt 0:02:23]} Re8 {[%emt 0:00:00]} 55. b4 {[%emt 0:01:25]} Ng4 {[%emt 0:00:00]} 56. Rh3 {[%emt 0:00:13]} Rh8 {[%emt 0:00:00]} 57. Be2 {[%emt 0:00:27]} Nf6 {[%emt 0:00:00]} 58. Bf3 {[%emt 0:00:10]} Nd7 {[%emt 0:00:00]} 59. a5 $1 {[%emt 0:00:23] b5 is the strong threat.} e5+ {[%emt 0:02:10]} 60. fxe5+ {[%emt 0:00:18]} ({Better is} 60. Kc3 $1 $18) 60... Nxe5 $16 {[%emt 0:00:09]} 61. Be4 {[%emt 0:00:53]} Nc6+ $2 {[%emt 0:02:29][%mdl 8192]} (61... Rc8 $16 {is a better chance.} 62. Rc3 (62. Rxh4 Rc4+ 63. Ke3 Rxb4 $14) 62... Rb8) 62. Kc4 $18 {[%emt 0:01:24]} Rh5 {[%emt 0:02:24] [#]} 63. a6 {[%emt 0:00:35]} (63. Rd3+ $1 $18 {and the rest is easy.} Kc7 64. Rd5 Rxd5 65. Bxd5 Ne5+ 66. Kd4) 63... Na7 $16 {[%emt 0:00:40] [#]} 64. Bf3 {[%emt 0:00:42] White is more active.} (64. Kb3 $142 $1) 64... Rh6 $2 {[%emt 0:00:14][%mdl 8192]} (64... Rf5 $16) 65. b5 $18 {[%emt 0:00:23] Threatens to win with b6.} Kc7 {[%emt 0:00:09]} 66. Kc5 {[%emt 0:00:28] And now Bd5 would win.} Rb6 {[%emt 0:01:37]} 67. Be2 {[%emt 0:00:28]} ({Weaker is} 67. Rxh4 Rxb5+ 68. Kc4 Kb6 $14) (67. Bc6 $142 Nxb5 68. Bxb5) 67... Rh6 {[%emt 0:00:31]} 68. Rf3 {[%emt 0:01:08] Rf7+ would kill now.} Rh5+ {[%emt 0:00:52]} 69. Kb4 {[%emt 0:00:14] White wants to mate with Rf7+.} Rh7 {[%emt 0:00:18] Repels Rf7+} 70. Bf1 {[%emt 0:00:07]} (70. Rf6 $142 Nc8 71. Bg4) 70... Rh5 {[%emt 0:00:57]} 71. Rf7+ {[%emt 0:00:35]} Kb8 {[%emt 0:00:46]} 72. Rb7+ {[%emt 0:00:06] White mates.} Ka8 {[%emt 0:00:04]} 73. Bg2 {[%emt 0:00:08]} h3 {[%emt 0:00:06]} 74. Bh1 {[%emt 0:03:07]} Rh4+ {[%emt 0:00:38]} 75. Ka5 {[%emt 0:03:29] Weighted Error Value: White=0.14 (very precise) /Black=0.24 (precise) .  Loses game:     	---       	Black=2      Missed win:     	White=1     	---        Mistake:       	White=3     	Black=6      Inaccurate:     	White=4     	Black=4      OK:         	White=19    	Black=16     Best:        	White=3     	Black=3      Strong:       	White=1     	---        Brilliant:      	---       	---} 1-0

[Event "13th Rheinland-Pfalz-Open 2023"]
[Site "Neuwied-Engers"]
[Date "2023.06.09"]
[Round "4.6"]
[White "Ronge, Tim"]
[Black "Kotyk, Michael"]
[Result "1/2-1/2"]
[Annotator "TA"]
[ECO "C50"]
[WhiteElo "2266"]
[BlackElo "2089"]
[PlyCount "61"]
[EventDate "2023.01.12"]
[EventType "swiss"]
[EventCountry "GER"]
[SourceTitle "playchess.com"]
[Source "ChessBase"]
[SourceQuality "1"]
[TimeControl "40/5400+30:1800+30"]

{[%evp 10,61,22,18,43,35,31,37,30,0,2,-2,41,40,48,60,59,55,47,-20,9,10,6,4,32,26,75,82,107,108,102,97,125,116,159,155,134,154,223,111,104,64,163,159,156,39,54,0,0,0,0,0,0,0]} 1. e4 {[%emt 0:00:03]} e5 {[%emt 0:00:06]} 2. Nf3 {[%emt 0:00:04]} Nc6 {[%emt 0:00:04]} 3. Bc4 {[%emt 0:00:07]} Bc5 {[%emt 0:00:12]} 4. d3 {[%emt 0:00:06]} Nf6 {[%emt 0:00:07]} 5. Nc3 {[%emt 0:00:06]} d6 {[%emt 0:00:15]} 6. Na4 {[%emt 0:00:08]} Bg4 {[%emt 0:02:16] C50: Hungarian Defence and Giuoco Pianissimo.} 7. Nxc5 {[%emt 0:03:46]} dxc5 {[%emt 0:00:07]} 8. Be3 {[%emt 0:03:57]} Qd6 {[%emt 0:02:47] White is slightly better.} 9. Bb5 {[%emt 0:13:00]} (9. h3 $5 {[%cal Rh3g4]} Bxf3 10. Qxf3 $14) 9... Nd7 $1 {[%emt 0:04:27]} 10. h3 {[%emt 0:01:29] [#]} Be6 $146 {[%emt 0:08:44]} ({Predecessor:} 10... Bh5 11. g4 Bg6 12. Nh4 O-O-O 13. Qe2 Nd4 14. Bxd4 cxd4 15. Bxd7+ Rxd7 16. O-O-O Qf6 17. Nxg6 hxg6 {0-1 Rodehueser,M-Schlange,S (2264) Bochum-ch 1999 (3)}) 11. Ng5 {[%emt 0:06:01]} a6 {[%emt 0:09:56]} 12. Nxe6 {[%emt 0:00:19]} Qxe6 {[%emt 0:00:06]} 13. Bc4 $36 {[%emt 0:08:47][%mdl 2048] Black is under pressure.} Qg6 {[%emt 0:00:11]} 14. Qd2 {[%emt 0:04:17]} ({White should play} 14. O-O $14) 14... Nd4 {[%emt 0:10:04]} (14... Nb6 $5 {[%cal Rb6c4]} 15. f3 (15. Bxc5 Nxc4 16. dxc4 Rd8 $17) 15... Nxc4 16. dxc4 Rd8 $11) 15. Bxd4 {[%emt 0:05:05]} cxd4 {[%emt 0:00:32]} (15... Qxg2 $2 16. Ke2 Qg6 17. Be3 $18) 16. O-O {[%emt 0:06:16]} b5 {[%emt 0:00:28]} 17. Bb3 {[%emt 0:01:36]} Nc5 {[%emt 0:00:44]} (17... O-O $11) 18. f4 $16 {[%emt 0:01:59]} Nxb3 {[%emt 0:01:00]} 19. cxb3 {[%emt 0:00:39]} O-O {[%emt 0:08:38]} 20. fxe5 {[%emt 0:11:36]} Qg3 {[%emt 0:07:08]} 21. Rf5 {[%emt 0:00:26]} Rad8 {[%emt 0:00:37]} 22. Raf1 {[%emt 0:03:47]} Qe3+ {[%emt 0:01:59]} 23. R1f2 {[%emt 0:00:05]} c5 {[%emt 0:04:33] [#]} (23... Qxd2 $16 24. Rxd2 c5) 24. Qc2 {[%emt 0:01:43]} (24. Qa5 $1 $18 {and the rest is easy.}) 24... Rc8 {[%emt 0:04:10]} 25. Kh2 {[%emt 0:07:09]} c4 {[%emt 0:02:41]} 26. bxc4 $18 {[%emt 0:00:30]} (26. dxc4 $6 d3 27. Qd2 Qxe4 $16) 26... bxc4 {[%emt 0:00:06]} 27. e6 {[%emt 0:11:27]} (27. dxc4 $16 {aiming for b3.} d3 28. Qc3) 27... fxe6 $14 {[%emt 0:06:22] [#]} 28. Qxc4 {[%emt 0:00:43]} Rfe8 $11 {[%emt 0:04:14] The position is equal.} (28... Qxf2 $2 29. Qxe6+ (29. Qxa6 {leads to mate.} exf5 30. Qe6+ Kh8 31. Qe5 f4) 29... Kh8 30. Rxf2 $18) 29. Qb3 {[%emt 0:03:23] And now R2f3 would win.} (29. Qxa6 $2 {loses.} exf5 30. Rxf5 Qd2 $19) 29... Rb8 $1 {[%emt 0:00:08]} 30. Qc4 {[%emt 0:01:01] Black must now prevent R5f4.} Rbc8 {[%emt 0:00:06]} 31. Qb3 {[%emt 0:00:06] Weighted Error Value: White=0.23 (precise) /Black=0.16 (very precise)} (31. Qxa6 $2 {too greedy.} exf5 32. Rxf5 Rc1 $19) 1/2-1/2

[Event "13th Rheinland-Pfalz-Open 2023"]
[Site "Neuwied-Engers"]
[Date "2023.06.09"]
[Round "4.7"]
[White "Wiley, Tom E"]
[Black "Morlo, Michael"]
[Result "1/2-1/2"]
[Annotator "TA"]
[ECO "D22"]
[WhiteElo "2126"]
[BlackElo "2262"]
[PlyCount "108"]
[EventDate "2023.01.12"]
[EventType "swiss"]
[EventCountry "GER"]
[SourceTitle "playchess.com"]
[Source "ChessBase"]
[SourceQuality "1"]
[TimeControl "40/5400+30:1800+30"]

{[%evp 21,108,26,22,24,20,15,41,46,51,24,0,0,8,23,23,0,0,-5,2,-10,33,12,20,12,14,20,12,-16,-14,-10,0,-14,53,9,44,25,47,24,62,48,107,59,116,88,149,0,97,100,110,75,92,0,149,93,87,59,133,51,132,23,18,2,2,2,2,2,1,8,2,0,15,15,15,0,0,0,0,0,0,0,0,0,0,0,0,0,0,0,0]} 1. d4 {[%emt 0:00:02]} d5 {[%emt 0:00:16]} 2. c4 {[%emt 0:00:07]} dxc4 {[%emt 0:00:29]} 3. e3 {[%emt 0:00:37]} a6 {[%emt 0:01:58]} 4. Nf3 {[%emt 0:02:02]} Bg4 {[%emt 0:00:36]} 5. Bxc4 {[%emt 0:01:16]} e6 {[%emt 0:00:09]} 6. h3 {[%emt 0:00:34]} Bh5 {[%emt 0:00:59]} 7. Nc3 {[%emt 0:00:40]} Nc6 {[%emt 0:00:55]} 8. Be2 {[%emt 0:05:04]} Nf6 {[%emt 0:00:23]} 9. O-O {[%emt 0:00:37]} Bd6 {[%emt 0:00:17]} 10. b3 {[%emt 0:00:19]} O-O {[%emt 0:00:31]} 11. Bb2 {[%emt 0:00:04]} Qe8 {[%emt 0:00:15]} 12. Nd2 {[%emt 0:09:23] D22: Queen's Gambit Accepted: 3 Nf3 a6 4 e3.} Bxe2 {[%emt 0:04:50]} 13. Qxe2 {[%emt 0:00:07]} e5 {[%emt 0:00:08]} 14. d5 {[%emt 0:10:42] White is slightly better.} Ne7 {[%emt 0:00:22] [#]} 15. Nc4 $146 {[%emt 0:04:14]} ({Predecessor:} 15. Nde4 Nxe4 16. Nxe4 Qb5 17. Qc4 Qd7 18. Rfd1 Ng6 19. Nc5 Bxc5 20. Qxc5 Rfd8 21. Rac1 {½-½ Laketic,G (2398)-Ratkovic,M (2359) SRB-chT Palic 2014 (5.2)}) 15... b5 {[%emt 0:12:08]} 16. Nxd6 {[%emt 0:02:34]} cxd6 {[%emt 0:00:06]} 17. e4 {[%emt 0:01:25]} Ng6 {[%emt 0:00:34]} 18. g3 {[%emt 0:00:23]} Qd7 {[%emt 0:06:12]} 19. Kh2 {[%emt 0:04:40]} Rac8 {[%emt 0:02:35]} 20. Rac1 {[%emt 0:01:30]} Qe7 {[%emt 0:02:51]} (20... h5 {seems wilder.} 21. Ba3 h4 22. Qd3 Nh7) 21. Nb1 {[%emt 0:15:48]} Qa7 {[%emt 0:19:58]} 22. f3 {[%emt 0:13:39]} Nd7 {[%emt 0:04:33]} 23. Rxc8 {[%emt 0:02:31]} Rxc8 {[%emt 0:00:14]} 24. Rc1 {[%emt 0:00:04]} Rxc1 {[%emt 0:04:21]} 25. Bxc1 {[%emt 0:00:04]} Qc7 {[%emt 0:00:14]} 26. Be3 {[%emt 0:01:44]} Ne7 {[%emt 0:01:44]} (26... f5 $11) 27. Qd2 {[%emt 0:07:55]} Kf8 {[%emt 0:04:24]} 28. Qc3 {[%emt 0:03:24]} Qb7 {[%emt 0:00:18]} 29. Nd2 {[%emt 0:00:58]} Ke8 {[%emt 0:01:56]} 30. Kg2 {[%emt 0:00:25]} g6 {[%emt 0:05:42]} (30... f5 $14) 31. Kf2 {[%emt 0:04:31] Black is weak on the dark squares} (31. Qb4 $16) 31... Kd8 {[%emt 0:03:26]} (31... f5 $14) 32. Qa5+ {[%emt 0:01:13]} Kc8 {[%emt 0:04:59]} (32... Ke8 $142) 33. Qc3+ {[%emt 0:00:45]} ({Don't take} 33. Bg5 f6 $16) (33. a4 $16) 33... Kb8 {[%emt 0:01:54]} (33... Kd8 $1 $11) 34. Ke2 {[%emt 0:00:34]} h5 {[%emt 0:01:15]} 35. Kd3 {[%emt 0:02:23]} Nb6 {[%emt 0:00:20]} 36. Ke2 {[%emt 0:01:35]} (36. Qb4 $16 Nec8 37. a4) 36... Nbc8 {[%emt 0:00:25]} (36... Nd7 $1 $11 {remains equal.}) 37. Bg5 {[%emt 0:00:33]} ({White should play} 37. Qa5) 37... Qd7 {[%emt 0:00:48]} 38. g4 {[%emt 0:00:32]} Na7 {[%emt 0:02:32]} (38... hxg4 $14 39. hxg4 f5) 39. b4 {[%emt 0:01:43]} (39. f4 $16) 39... Nec8 {[%emt 0:01:41]} (39... hxg4 $14 40. hxg4 Nec8) 40. Nb3 {[%emt 0:00:36]} (40. Qe3 $16) 40... hxg4 $1 $11 {[%emt 0:04:21]} 41. hxg4 {[%emt 0:30:31][%cal Ob3c5] The position is equal.} (41. fxg4 $5 {[%cal Rc3f3]} f5 42. Nc5 $14) 41... f5 {[%emt 0:30:38]} 42. gxf5 {[%emt 0:01:19]} gxf5 {[%emt 0:00:08]} 43. Be3 $1 {[%emt 0:00:47]} fxe4 {[%emt 0:00:10]} (43... f4 {simplifies} 44. Bf2 Qc7 45. Qxc7+ Kxc7 46. Ke1 Nb6) 44. fxe4 {[%emt 0:00:00]} Qg4+ {[%emt 0:00:00]} (44... Qh7 {simplifies} 45. Qc2 Qh2+ 46. Kd3 Qxc2+ 47. Kxc2 Kb7) 45. Kd3 {[%emt 0:00:00]} Qg2 {[%emt 0:00:00]} ({Don't do} 45... Qd1+ 46. Nd2 $14) 46. Nd2 {[%emt 0:00:00] Active counter play!} Kb7 {[%emt 0:00:00]} (46... Qh3 {simplifies} 47. Kc2 Kb7 48. Bf2 Qxc3+ 49. Kxc3 Nb6) 47. Qc2 {[%emt 0:00:00]} Nb6 {[%emt 0:00:00]} 48. Bxb6 {[%emt 0:00:00]} Kxb6 {[%emt 0:00:00][%mdl 4096] Endgame KQN-KQN} 49. Qc3 {[%emt 0:00:00]} Kb7 {[%emt 0:00:00]} 50. Kc2 {[%emt 0:00:00]} Qf2 {[%emt 0:00:00]} 51. Kb1 {[%emt 0:00:00]} Nc8 {[%emt 0:00:00]} 52. Nb3 {[%emt 0:00:00]} Qg1+ {[%emt 0:00:00]} 53. Kb2 {[%emt 0:00:00]} Nb6 {[%emt 0:00:00] [#] Strongly threatening ...Na4+.} 54. Qc6+ {[%emt 0:00:00]} Ka7 {[%emt 0:00:00] Weighted Error Value: White=0.23 (precise) /Black=0.24 (precise)} 1/2-1/2